[Event "Live Chess"]
[Site "Chess.com"]
[Date "2024.06.01"]
[Round "-"]
[White "GEMdzq"]
[Black "bonantagulo"]
[Result "1/2-1/2"]
[WhiteElo "2298"]
[BlackElo "2072"]
[TimeControl "300"]
[EndTime "13:42:09 PDT"]
[Termination "Game drawn by repetition"]

1. e4 {[%clk 0:04:56.5]} 1... c5 {[%clk 0:04:56.5]} 2. d4 {[%clk 0:04:55.1]}
2... cxd4 {[%clk 0:04:55.6]} 3. c3 {[%clk 0:04:54.7]} 3... Nf6 {[%clk
0:04:53.4]} 4. e5 {[%clk 0:04:53.6]} 4... Nd5 {[%clk 0:04:53]} 5. Qxd4 {[%clk
0:04:52.7]} 5... e6 {[%clk 0:04:49.8]} 6. Bd3 {[%clk 0:04:51.7]} 6... Nc6 {[%clk
0:04:48.8]} 7. Qe4 {[%clk 0:04:50.8]} 7... f5 {[%clk 0:04:41.7]} 8. exf6 {[%clk
0:04:49.3]} 8... Nxf6 {[%clk 0:04:41.2]} 9. Qh4 {[%clk 0:04:48.4]} 9... Be7
{[%clk 0:04:39.9]} 10. Nf3 {[%clk 0:04:42.9]} 10... O-O {[%clk 0:04:32.4]} 11.
Bg5 {[%clk 0:04:40.9]} 11... h6 {[%clk 0:04:24.6]} 12. Bxf6 {[%clk 0:04:35.2]}
12... Bxf6 {[%clk 0:04:21.1]} 13. Qe4 {[%clk 0:04:34.1]} 13... d5 {[%clk
0:04:07.7]} 14. Qh7+ {[%clk 0:04:32.9]} 14... Kf7 {[%clk 0:04:07.2]} 15. O-O
{[%clk 0:04:23.5]} 15... e5 {[%clk 0:04:02.2]} 16. c4 {[%clk 0:04:19]} 16... e4
{[%clk 0:03:54.8]} 17. cxd5 {[%clk 0:04:18.1]} 17... exd3 {[%clk 0:03:50.8]} 18.
dxc6 {[%clk 0:04:16.3]} 18... bxc6 {[%clk 0:03:50.3]} 19. Nc3 {[%clk 0:04:12]}
19... Bg4 {[%clk 0:03:34.1]} 20. Qe4 {[%clk 0:04:05]} 20... Qd7 {[%clk
0:03:21.6]} 21. Rfe1 {[%clk 0:03:50.8]} 21... Rfe8 {[%clk 0:03:15.9]} 22. Qf4
{[%clk 0:03:40.4]} 22... Kg8 {[%clk 0:02:40.8]} 23. h3 {[%clk 0:03:22.2]} 23...
Bxf3 {[%clk 0:02:35.6]} 24. Qxf3 {[%clk 0:03:22.1]} 24... d2 {[%clk 0:02:27]}
25. Red1 {[%clk 0:03:17.9]} 25... Rad8 {[%clk 0:02:17.6]} 26. Ne4 {[%clk
0:03:15.8]} 26... Bxb2 {[%clk 0:02:03.2]} 27. Rxd2 {[%clk 0:03:12.7]} 27... Bxa1
{[%clk 0:01:48.8]} 28. Rxd7 {[%clk 0:03:11.2]} 28... Rxd7 {[%clk 0:01:48.3]} 29.
Qg4 {[%clk 0:02:50.2]} 29... Rde7 {[%clk 0:01:42.2]} 30. Ng3 {[%clk 0:02:42.2]}
30... Re1+ {[%clk 0:01:35.5]} 31. Kh2 {[%clk 0:02:41.4]} 31... Be5 {[%clk
0:01:34.6]} 32. Qc4+ {[%clk 0:02:37.7]} 32... Kh8 {[%clk 0:01:28.2]} 33. Qxc6
{[%clk 0:02:34.8]} 33... Bxg3+ {[%clk 0:01:26.5]} 34. Kxg3 {[%clk 0:02:32.2]}
34... R1e2 {[%clk 0:01:12.8]} 35. a4 {[%clk 0:02:26.8]} 35... R8e6 {[%clk
0:01:03.2]} 36. Qc8+ {[%clk 0:02:20.2]} 36... Kh7 {[%clk 0:01:02.1]} 37. Qc5
{[%clk 0:02:15.2]} 37... a6 {[%clk 0:00:58.4]} 38. h4 {[%clk 0:02:09.2]} 38...
Rg6+ {[%clk 0:00:56]} 39. Kh2 {[%clk 0:02:07.7]} 39... Rf6 {[%clk 0:00:49.9]}
40. f3 {[%clk 0:02:00.6]} 40... Rxf3 {[%clk 0:00:44.7]} 41. Qc4 {[%clk 0:01:57]}
41... Rff2 {[%clk 0:00:41.2]} 42. Qd3+ {[%clk 0:01:53.5]} 42... Kh8 {[%clk
0:00:38.1]} 43. Qd8+ {[%clk 0:01:44.2]} 43... Kh7 {[%clk 0:00:37.4]} 44. Qd3+
{[%clk 0:01:43]} 44... Kg8 {[%clk 0:00:36.8]} 45. Qc4+ {[%clk 0:01:39.5]} 45...
Kh8 {[%clk 0:00:33.1]} 46. Qxa6 {[%clk 0:01:30.2]} 46... Rxg2+ {[%clk
0:00:32.3]} 47. Kh1 {[%clk 0:01:28.3]} 47... Rh2+ {[%clk 0:00:32.2]} 48. Kg1
{[%clk 0:01:27.3]} 48... Reg2+ {[%clk 0:00:32.1]} 49. Kf1 {[%clk 0:01:26.4]}
49... Ra2 {[%clk 0:00:31.1]} 50. Qc8+ {[%clk 0:01:22.4]} 50... Kh7 {[%clk
0:00:30]} 51. Qf5+ {[%clk 0:01:21.5]} 51... Kg8 {[%clk 0:00:29.2]} 52. Qe6+
{[%clk 0:01:20.6]} 52... Kf8 {[%clk 0:00:28.2]} 53. Qf5+ {[%clk 0:01:19.4]}
53... Ke7 {[%clk 0:00:27.4]} 54. Qe5+ {[%clk 0:01:18.7]} 54... Kd8 {[%clk
0:00:26.5]} 55. Qd6+ {[%clk 0:01:17.5]} 55... Kc8 {[%clk 0:00:25.3]} 56. Qc6+
{[%clk 0:01:16.2]} 56... Kd8 {[%clk 0:00:24]} 57. Qd6+ {[%clk 0:01:14.9]} 57...
Ke8 {[%clk 0:00:23.6]} 58. Qe6+ {[%clk 0:01:13.9]} 58... Kf8 {[%clk 0:00:23.1]}
59. Qf5+ {[%clk 0:01:12.1]} 59... Ke7 {[%clk 0:00:22.4]} 60. Qe5+ {[%clk
0:01:10.9]} 60... Kf7 {[%clk 0:00:22.3]} 61. Qf5+ {[%clk 0:01:10.2]} 61... Ke7
{[%clk 0:00:21.4]} 1/2-1/2

[Event "Live Chess"]
[Site "Chess.com"]
[Date "2024.06.01"]
[Round "-"]
[White "WorcesterYork"]
[Black "koekoekoe"]
[Result "1-0"]
[WhiteElo "2501"]
[BlackElo "2026"]
[TimeControl "300"]
[EndTime "13:42:33 PDT"]
[Termination "WorcesterYork won by resignation"]

1. d4 {[%clk 0:04:57.5]} 1... d5 {[%clk 0:04:59.9]} 2. c4 {[%clk 0:04:56.4]}
2... c6 {[%clk 0:04:59.1]} 3. Nf3 {[%clk 0:04:55.7]} 3... Nf6 {[%clk 0:04:58.3]}
4. Nc3 {[%clk 0:04:55.3]} 4... Bf5 {[%clk 0:04:56.8]} 5. cxd5 {[%clk 0:04:53.7]}
5... Nxd5 {[%clk 0:04:49.4]} 6. Nd2 {[%clk 0:04:51.6]} 6... e6 {[%clk 0:04:42]}
7. e4 {[%clk 0:04:44.7]} 7... Nxc3 {[%clk 0:04:38.7]} 8. bxc3 {[%clk 0:04:44.6]}
8... Bg6 {[%clk 0:04:37]} 9. Qb3 {[%clk 0:04:43.5]} 9... Qb6 {[%clk 0:04:35.6]}
10. Bd3 {[%clk 0:04:41.2]} 10... Nd7 {[%clk 0:04:31.1]} 11. Nc4 {[%clk
0:04:39.2]} 11... Qxb3 {[%clk 0:04:24.6]} 12. axb3 {[%clk 0:04:39.1]} 12... a6
{[%clk 0:04:23.1]} 13. f4 {[%clk 0:04:36.6]} 13... f6 {[%clk 0:04:10]} 14. Be3
{[%clk 0:04:34.8]} 14... b5 {[%clk 0:03:53.5]} 15. Nd2 {[%clk 0:04:32.5]} 15...
e5 {[%clk 0:03:41.5]} 16. f5 {[%clk 0:03:49.3]} 16... Bf7 {[%clk 0:03:39]} 17.
Ke2 {[%clk 0:03:47.6]} 17... exd4 {[%clk 0:03:29]} 18. cxd4 {[%clk 0:03:45.2]}
18... c5 {[%clk 0:03:22.6]} 19. Bxb5 {[%clk 0:03:41.3]} 19... cxd4 {[%clk
0:03:12.4]} 20. Bxd4 {[%clk 0:03:41.2]} 20... Bb4 {[%clk 0:03:02.9]} 21. Rxa6
{[%clk 0:03:34.5]} 21... Rxa6 {[%clk 0:02:53.2]} 22. Bxa6 {[%clk 0:03:34.4]}
22... Bxd2 {[%clk 0:02:40.5]} 23. Kxd2 {[%clk 0:03:33.3]} 23... Bxb3 {[%clk
0:02:39.8]} 24. Rb1 {[%clk 0:03:31.8]} 24... Ba4 {[%clk 0:02:34.4]} 25. Rb4
{[%clk 0:03:19.5]} 25... Bc6 {[%clk 0:02:29.9]} 26. Rc4 {[%clk 0:03:18.9]} 26...
Nb8 {[%clk 0:02:22]} 27. Ba7 {[%clk 0:03:16.4]} 27... Ba8 {[%clk 0:01:30.5]} 28.
Bxb8 {[%clk 0:03:02]} 28... Kd7 {[%clk 0:01:23.6]} 29. Bf4 {[%clk 0:03:00]}
29... Re8 {[%clk 0:01:20.7]} 30. Bb5+ {[%clk 0:02:58.9]} 1-0

[Event "Live Chess"]
[Site "Chess.com"]
[Date "2024.06.01"]
[Round "-"]
[White "Ferrarifan27"]
[Black "StoreySniper"]
[Result "0-1"]
[WhiteElo "2061"]
[BlackElo "2535"]
[TimeControl "300"]
[EndTime "13:42:51 PDT"]
[Termination "StoreySniper won by resignation"]

1. e4 {[%clk 0:04:57]} 1... g6 {[%clk 0:04:58.7]} 2. d4 {[%clk 0:04:55.3]} 2...
Bg7 {[%clk 0:04:58]} 3. Nf3 {[%clk 0:04:54.1]} 3... c5 {[%clk 0:04:57]} 4. dxc5
{[%clk 0:04:49.4]} 4... Qa5+ {[%clk 0:04:55.4]} 5. Bd2 {[%clk 0:04:48.3]} 5...
Qxc5 {[%clk 0:04:54.6]} 6. Bc3 {[%clk 0:04:47.6]} 6... Nf6 {[%clk 0:04:53.6]} 7.
Bd3 {[%clk 0:04:45.6]} 7... Nc6 {[%clk 0:04:48]} 8. O-O {[%clk 0:04:44.2]} 8...
d6 {[%clk 0:04:47.2]} 9. Nbd2 {[%clk 0:04:41.2]} 9... O-O {[%clk 0:04:43.7]} 10.
Nb3 {[%clk 0:04:39.2]} 10... Qb6 {[%clk 0:04:41.6]} 11. Re1 {[%clk 0:04:32.4]}
11... Ng4 {[%clk 0:04:38]} 12. Qe2 {[%clk 0:04:27.1]} 12... Bxc3 {[%clk
0:04:36.2]} 13. bxc3 {[%clk 0:04:26.2]} 13... e5 {[%clk 0:04:24.9]} 14. h3
{[%clk 0:04:23.7]} 14... Nf6 {[%clk 0:04:22.7]} 15. Rab1 {[%clk 0:04:22.3]}
15... Qc7 {[%clk 0:04:19.1]} 16. Red1 {[%clk 0:04:01.9]} 16... Nh5 {[%clk
0:04:12.7]} 17. Bc4 {[%clk 0:03:55.4]} 17... Nf4 {[%clk 0:04:07]} 18. Qe3 {[%clk
0:03:54]} 18... Be6 {[%clk 0:03:41.4]} 19. Bxe6 {[%clk 0:03:51.3]} 19... fxe6
{[%clk 0:03:38.5]} 20. Ng5 {[%clk 0:03:47.7]} 20... Qe7 {[%clk 0:03:34.1]} 21.
h4 {[%clk 0:03:45.3]} 21... h6 {[%clk 0:03:20.8]} 22. Nf3 {[%clk 0:03:43.5]}
22... g5 {[%clk 0:03:18.7]} 23. hxg5 {[%clk 0:03:40.9]} 23... hxg5 {[%clk
0:03:17.9]} 24. Kf1 {[%clk 0:03:38.7]} 24... Rf7 {[%clk 0:03:09.1]} 25. g3
{[%clk 0:03:37.3]} 25... Nh3 {[%clk 0:03:02.7]} 26. Rd2 {[%clk 0:03:27]} 26...
Raf8 {[%clk 0:02:58.6]} 27. Kg2 {[%clk 0:03:23.4]} 27... g4 {[%clk 0:02:55.7]}
28. Nh4 {[%clk 0:03:21.6]} 28... Rxf2+ {[%clk 0:02:52.6]} 29. Rxf2 {[%clk
0:03:20.7]} 29... Rxf2+ {[%clk 0:02:51.4]} 30. Qxf2 {[%clk 0:03:19.4]} 30...
Nxf2 {[%clk 0:02:50]} 31. Kxf2 {[%clk 0:03:19.3]} 31... d5 {[%clk 0:02:30]} 32.
Re1 {[%clk 0:03:10.9]} 32... d4 {[%clk 0:02:25.8]} 33. cxd4 {[%clk 0:03:08.2]}
33... exd4 {[%clk 0:02:25]} 34. e5 {[%clk 0:03:03.8]} 34... Qb4 {[%clk
0:02:15.1]} 35. Re4 {[%clk 0:02:58.6]} 35... Qc3 {[%clk 0:02:06.8]} 36. Rxg4+
{[%clk 0:02:56.2]} 36... Kf7 {[%clk 0:02:06.2]} 37. Rf4+ {[%clk 0:02:54.3]}
37... Ke8 {[%clk 0:02:05.4]} 38. Re4 {[%clk 0:02:43.8]} 38... Qxc2+ {[%clk
0:02:00.4]} 39. Re2 {[%clk 0:02:42.8]} 39... Qb1 {[%clk 0:01:54.9]} 40. Rd2
{[%clk 0:02:37.8]} 40... d3 {[%clk 0:01:49.5]} 41. Nf3 {[%clk 0:02:31.1]} 41...
Nb4 {[%clk 0:01:42]} 42. Nc5 {[%clk 0:02:28.2]} 42... Ke7 {[%clk 0:01:21.5]} 43.
Nxb7 {[%clk 0:02:17.2]} 43... Nxa2 {[%clk 0:01:14.8]} 44. Nc5 {[%clk 0:02:15.2]}
44... Nb4 {[%clk 0:01:12.4]} 45. Ne1 {[%clk 0:02:12]} 45... Qc1 {[%clk
0:01:07.2]} 46. Nb3 {[%clk 0:02:04.9]} 46... Qc4 {[%clk 0:01:01.6]} 47. Rb2
{[%clk 0:01:46]} 47... a5 {[%clk 0:00:52.6]} 48. Ke3 {[%clk 0:01:35]} 48... Nd5+
{[%clk 0:00:48.8]} 49. Kd2 {[%clk 0:01:28.1]} 49... Qc3+ {[%clk 0:00:46.1]} 50.
Kd1 {[%clk 0:01:23.8]} 50... Qxb2 {[%clk 0:00:43.6]} 0-1

[Event "Live Chess"]
[Site "Chess.com"]
[Date "2024.06.01"]
[Round "-"]
[White "chessfiction"]
[Black "dhairyapandyauk"]
[Result "1-0"]
[WhiteElo "2372"]
[BlackElo "1687"]
[TimeControl "300"]
[EndTime "13:43:00 PDT"]
[Termination "chessfiction won by checkmate"]

1. d4 {[%clk 0:04:56.7]} 1... Nf6 {[%clk 0:04:58.6]} 2. Nf3 {[%clk 0:04:56.6]}
2... d5 {[%clk 0:04:56.9]} 3. Bf4 {[%clk 0:04:56.2]} 3... Bf5 {[%clk 0:04:55.8]}
4. e3 {[%clk 0:04:55.6]} 4... Nbd7 {[%clk 0:04:54.8]} 5. Be2 {[%clk 0:04:52.2]}
5... e6 {[%clk 0:04:54]} 6. O-O {[%clk 0:04:51.8]} 6... c5 {[%clk 0:04:53]} 7.
c3 {[%clk 0:04:50.7]} 7... Be7 {[%clk 0:04:51.9]} 8. Nbd2 {[%clk 0:04:48.5]}
8... O-O {[%clk 0:04:51.4]} 9. Ne5 {[%clk 0:04:48.1]} 9... Nxe5 {[%clk
0:04:49.8]} 10. dxe5 {[%clk 0:04:47]} 10... Nd7 {[%clk 0:04:47.3]} 11. Nf3
{[%clk 0:04:44.9]} 11... Qb6 {[%clk 0:04:44.2]} 12. b3 {[%clk 0:04:43.1]} 12...
Rfd8 {[%clk 0:04:38.1]} 13. Rc1 {[%clk 0:04:39.8]} 13... Rac8 {[%clk 0:04:36.4]}
14. Qd2 {[%clk 0:04:38.2]} 14... Nf8 {[%clk 0:04:33.8]} 15. Rfd1 {[%clk
0:04:37.7]} 15... Ng6 {[%clk 0:04:30.8]} 16. Bg3 {[%clk 0:04:36]} 16... a5
{[%clk 0:04:25.1]} 17. Qe1 {[%clk 0:04:34.5]} 17... Qc6 {[%clk 0:04:19]} 18. c4
{[%clk 0:04:04.9]} 18... a4 {[%clk 0:04:13.9]} 19. cxd5 {[%clk 0:04:02.8]} 19...
exd5 {[%clk 0:04:13.3]} 20. Nd4 {[%clk 0:03:59.2]} 20... Qd7 {[%clk 0:04:06.8]}
21. Bb5 {[%clk 0:03:56.6]} 21... Qc7 {[%clk 0:03:54.5]} 22. Nxf5 {[%clk
0:03:54.6]} 22... axb3 {[%clk 0:03:53]} 23. axb3 {[%clk 0:03:52.6]} 23... Bg5
{[%clk 0:03:51]} 24. f4 {[%clk 0:03:50.5]} 24... Be7 {[%clk 0:03:48.6]} 25.
Nxe7+ {[%clk 0:03:49.5]} 25... Nxe7 {[%clk 0:03:46.6]} 26. Qf2 {[%clk
0:03:44.9]} 26... Nf5 {[%clk 0:03:45.1]} 27. Bd3 {[%clk 0:03:42.6]} 27... Qd7
{[%clk 0:03:37.9]} 28. e4 {[%clk 0:03:40.4]} 28... Nd4 {[%clk 0:03:35]} 29. exd5
{[%clk 0:03:38.6]} 29... Qxd5 {[%clk 0:03:34.2]} 30. h3 {[%clk 0:03:37.3]} 30...
Qxb3 {[%clk 0:03:28]} 31. f5 {[%clk 0:03:32.8]} 31... c4 {[%clk 0:03:25.8]} 32.
Be4 {[%clk 0:03:28.6]} 32... c3 {[%clk 0:03:17.6]} 33. f6 {[%clk 0:03:25.7]}
33... c2 {[%clk 0:03:11.2]} 34. Rxd4 {[%clk 0:03:23.5]} 34... Rxd4 {[%clk
0:03:02.1]} 35. Qxd4 {[%clk 0:03:23.4]} 35... Qxg3 {[%clk 0:02:59]} 36. Rxc2
{[%clk 0:03:14.7]} 36... Re8 {[%clk 0:02:48]} 37. Rf2 {[%clk 0:03:08.5]} 37...
Qxe5 {[%clk 0:02:39.8]} 38. Qxe5 {[%clk 0:03:05.3]} 38... Rxe5 {[%clk
0:02:39.3]} 39. Bxb7 {[%clk 0:03:05.1]} 39... gxf6 {[%clk 0:02:37.3]} 40. Rxf6
{[%clk 0:03:03.4]} 40... Kg7 {[%clk 0:02:36.9]} 41. Rf3 {[%clk 0:03:01.4]} 41...
Kg6 {[%clk 0:02:36.1]} 42. Kf2 {[%clk 0:02:59.2]} 42... f5 {[%clk 0:02:35.2]}
43. Bc8 {[%clk 0:02:57.1]} 43... Kg5 {[%clk 0:02:34.2]} 44. Kg3 {[%clk
0:02:54.4]} 44... h5 {[%clk 0:02:30.4]} 45. h4+ {[%clk 0:02:53]} 45... Kg6
{[%clk 0:02:29.5]} 46. Bd7 {[%clk 0:02:52.3]} 46... Rd5 {[%clk 0:02:25.7]} 47.
Be8+ {[%clk 0:02:50.4]} 47... Kf6 {[%clk 0:02:24.5]} 48. Bxh5 {[%clk 0:02:49.1]}
48... Rd4 {[%clk 0:02:17.6]} 49. Kh3 {[%clk 0:02:46.8]} 49... Ke5 {[%clk
0:02:14.6]} 50. Bg6 {[%clk 0:02:44.9]} 50... f4 {[%clk 0:02:12.9]} 51. Kg4
{[%clk 0:02:44.1]} 51... Rd2 {[%clk 0:02:08.4]} 52. Kh3 {[%clk 0:02:32.8]} 52...
Re2 {[%clk 0:02:02.6]} 53. h5 {[%clk 0:02:30.5]} 53... Rd2 {[%clk 0:02:00.1]}
54. h6 {[%clk 0:02:28.8]} 54... Rd8 {[%clk 0:01:58.8]} 55. h7 {[%clk 0:02:27.9]}
55... Rh8 {[%clk 0:01:57.7]} 56. Kg4 {[%clk 0:02:25.9]} 56... Kf6 {[%clk
0:01:57]} 57. Bb1 {[%clk 0:02:24.1]} 57... Kg7 {[%clk 0:01:54.8]} 58. Rxf4
{[%clk 0:02:23.1]} 58... Kh6 {[%clk 0:01:54.1]} 59. Rf6+ {[%clk 0:02:21.2]}
59... Kg7 {[%clk 0:01:53.7]} 60. Ra6 {[%clk 0:02:18.2]} 60... Kf7 {[%clk
0:01:51.3]} 61. Ra7+ {[%clk 0:02:16.7]} 61... Kf6 {[%clk 0:01:50.5]} 62. g3
{[%clk 0:02:16]} 62... Ke6 {[%clk 0:01:48.9]} 63. Bg6 {[%clk 0:02:14]} 63... Kf6
{[%clk 0:01:48]} 64. Kh5 {[%clk 0:02:13]} 64... Ke6 {[%clk 0:01:46.4]} 65. g4
{[%clk 0:02:12.3]} 65... Kf6 {[%clk 0:01:45.7]} 66. g5+ {[%clk 0:02:11.6]} 66...
Ke6 {[%clk 0:01:44.8]} 67. Bc2 {[%clk 0:02:10.6]} 67... Ke5 {[%clk 0:01:43.7]}
68. g6 {[%clk 0:02:09.8]} 68... Kf6 {[%clk 0:01:42.3]} 69. g7 {[%clk 0:02:08.7]}
69... Rxh7+ {[%clk 0:01:17.9]} 70. Bxh7 {[%clk 0:02:08.6]} 70... Ke6 {[%clk
0:01:16.5]} 71. g8=Q+ {[%clk 0:02:07.6]} 71... Ke5 {[%clk 0:01:16.1]} 72. Qg5+
{[%clk 0:02:06.4]} 72... Ke6 {[%clk 0:01:14.9]} 73. Ra6+ {[%clk 0:02:05.5]}
73... Kd7 {[%clk 0:01:13.8]} 74. Qg7+ {[%clk 0:02:04.6]} 74... Kc8 {[%clk
0:01:12.6]} 75. Ra8# {[%clk 0:02:04.3]} 1-0

[Event "Live Chess"]
[Site "Chess.com"]
[Date "2024.06.01"]
[Round "-"]
[White "Tushinskiy"]
[Black "wadsy27"]
[Result "0-1"]
[WhiteElo "2263"]
[BlackElo "2542"]
[TimeControl "300"]
[EndTime "13:43:06 PDT"]
[Termination "wadsy27 won by resignation"]

1. d4 {[%clk 0:04:56.4]} 1... Nf6 {[%clk 0:04:58.3]} 2. c3 {[%clk 0:04:56.3]}
2... c5 {[%clk 0:04:58.1]} 3. Nf3 {[%clk 0:04:56.2]} 3... cxd4 {[%clk
0:04:56.8]} 4. cxd4 {[%clk 0:04:56.1]} 4... d5 {[%clk 0:04:56.4]} 5. Nc3 {[%clk
0:04:55.9]} 5... Nc6 {[%clk 0:04:55.4]} 6. Bf4 {[%clk 0:04:50.5]} 6... a6 {[%clk
0:04:54.8]} 7. e3 {[%clk 0:04:40.5]} 7... Bg4 {[%clk 0:04:53.8]} 8. Be2 {[%clk
0:04:38.8]} 8... e6 {[%clk 0:04:50.1]} 9. O-O {[%clk 0:04:36]} 9... Be7 {[%clk
0:04:46.7]} 10. Rc1 {[%clk 0:04:33.2]} 10... O-O {[%clk 0:04:46.2]} 11. a3
{[%clk 0:04:31.5]} 11... Rc8 {[%clk 0:04:43.4]} 12. Na4 {[%clk 0:04:30.2]} 12...
Re8 {[%clk 0:04:34.5]} 13. Nc5 {[%clk 0:04:27.9]} 13... Bxc5 {[%clk 0:04:33.9]}
14. Rxc5 {[%clk 0:04:26.3]} 14... Ne4 {[%clk 0:04:31.8]} 15. Rc1 {[%clk
0:04:24.4]} 15... Nd6 {[%clk 0:04:31]} 16. Ne5 {[%clk 0:04:21.7]} 16... Bxe2
{[%clk 0:04:29.6]} 17. Qxe2 {[%clk 0:04:21.6]} 17... Nxe5 {[%clk 0:04:28.9]} 18.
Bxe5 {[%clk 0:04:21.5]} 18... Nc4 {[%clk 0:04:28.1]} 19. Bg3 {[%clk 0:04:20.7]}
19... b5 {[%clk 0:04:25.9]} 20. h3 {[%clk 0:04:14.4]} 20... Qd7 {[%clk
0:04:20.7]} 21. Rc2 {[%clk 0:04:13]} 21... Rc6 {[%clk 0:04:19.2]} 22. Rfc1
{[%clk 0:04:11.9]} 22... Rec8 {[%clk 0:04:18.6]} 23. Kh2 {[%clk 0:04:09.7]}
23... a5 {[%clk 0:04:16.8]} 24. h4 {[%clk 0:04:04.4]} 24... h6 {[%clk
0:04:14.7]} 25. Kg1 {[%clk 0:03:59.7]} 25... a4 {[%clk 0:04:13.9]} 26. Kh2
{[%clk 0:03:57.6]} 26... Qb7 {[%clk 0:04:12.8]} 27. e4 {[%clk 0:03:53.5]} 27...
Na5 {[%clk 0:03:58.6]} 28. exd5 {[%clk 0:03:48.6]} 28... Rxc2 {[%clk 0:03:57.8]}
29. Rxc2 {[%clk 0:03:48.5]} 29... Rxc2 {[%clk 0:03:56.3]} 30. Qxc2 {[%clk
0:03:45.7]} 30... Qxd5 {[%clk 0:03:55.7]} 31. Qc8+ {[%clk 0:03:43.2]} 31... Kh7
{[%clk 0:03:54.7]} 32. Qc7 {[%clk 0:03:41.7]} 32... Nc6 {[%clk 0:03:50.9]} 33.
Qxf7 {[%clk 0:03:40.4]} 33... Nxd4 {[%clk 0:03:50.2]} 34. Qc7 {[%clk 0:03:33.1]}
34... Nf5 {[%clk 0:03:34.1]} 35. Be5 {[%clk 0:03:31.9]} 35... Qe4 {[%clk
0:03:26.5]} 36. g3 {[%clk 0:03:25.4]} 36... Qe2 {[%clk 0:03:21.6]} 37. Kg2
{[%clk 0:03:14]} 37... Ne3+ {[%clk 0:03:14.8]} 0-1

[Event "Live Chess"]
[Site "Chess.com"]
[Date "2024.06.01"]
[Round "-"]
[White "FMOlexandrProhorov"]
[Black "RichardABates"]
[Result "1-0"]
[WhiteElo "2347"]
[BlackElo "2218"]
[TimeControl "300"]
[EndTime "13:43:07 PDT"]
[Termination "FMOlexandrProhorov won by checkmate"]

1. d4 {[%clk 0:04:54.2]} 1... Nf6 {[%clk 0:04:58.5]} 2. c4 {[%clk 0:04:53.4]}
2... e6 {[%clk 0:04:56.6]} 3. Nc3 {[%clk 0:04:53.3]} 3... Bb4 {[%clk 0:04:54.7]}
4. f3 {[%clk 0:04:52]} 4... c5 {[%clk 0:04:49.3]} 5. d5 {[%clk 0:04:51.2]} 5...
d6 {[%clk 0:04:45.9]} 6. e4 {[%clk 0:04:49.5]} 6... O-O {[%clk 0:04:44.2]} 7.
Bd3 {[%clk 0:04:48.2]} 7... b5 {[%clk 0:04:41.5]} 8. Ne2 {[%clk 0:04:45.8]} 8...
exd5 {[%clk 0:04:32.1]} 9. exd5 {[%clk 0:04:37.7]} 9... Nbd7 {[%clk 0:04:16.4]}
10. O-O {[%clk 0:04:35.5]} 10... Ne5 {[%clk 0:04:14]} 11. cxb5 {[%clk
0:04:31.6]} 11... a6 {[%clk 0:04:08.1]} 12. Bg5 {[%clk 0:04:23.4]} 12... h6
{[%clk 0:04:01.9]} 13. Bxf6 {[%clk 0:04:21.4]} 13... Qxf6 {[%clk 0:04:00.3]} 14.
Ne4 {[%clk 0:04:21.1]} 14... Qd8 {[%clk 0:03:53]} 15. a3 {[%clk 0:04:18.2]}
15... Ba5 {[%clk 0:03:51]} 16. bxa6 {[%clk 0:04:12.2]} 16... f5 {[%clk
0:03:46.1]} 17. N4c3 {[%clk 0:04:04.2]} 17... Nxd3 {[%clk 0:03:40.5]} 18. Qxd3
{[%clk 0:04:02.1]} 18... Bxa6 {[%clk 0:03:39.2]} 19. Qc2 {[%clk 0:03:57.7]}
19... Qf6 {[%clk 0:03:30.5]} 20. Rfe1 {[%clk 0:03:41.9]} 20... Rfe8 {[%clk
0:03:27.5]} 21. Ng3 {[%clk 0:03:34.8]} 21... g6 {[%clk 0:03:09]} 22. Rad1 {[%clk
0:03:25.9]} 22... h5 {[%clk 0:03:06.7]} 23. h3 {[%clk 0:03:14.2]} 23... h4
{[%clk 0:03:02.5]} 24. Nh1 {[%clk 0:03:08.8]} 24... Re5 {[%clk 0:02:44.2]} 25.
Nf2 {[%clk 0:03:03.2]} 25... Rae8 {[%clk 0:02:35.8]} 26. Rxe5 {[%clk 0:02:55.7]}
26... Qxe5 {[%clk 0:02:34.4]} 27. Qa4 {[%clk 0:02:45.4]} 27... Bxc3 {[%clk
0:02:28.2]} 28. bxc3 {[%clk 0:02:36.7]} 28... Bb7 {[%clk 0:02:23.1]} 29. Qb3
{[%clk 0:02:28.4]} 29... Qg3 {[%clk 0:02:19]} 30. Qxb7 {[%clk 0:02:23.1]} 30...
Re2 {[%clk 0:01:52.6]} 31. Rf1 {[%clk 0:02:20.7]} 31... Qe5 {[%clk 0:01:50.9]}
32. a4 {[%clk 0:02:12.9]} 32... Re1 {[%clk 0:01:47.7]} 33. Qb8+ {[%clk 0:02:03]}
33... Kh7 {[%clk 0:01:45.2]} 34. Qb2 {[%clk 0:01:57.7]} 34... Re2 {[%clk
0:01:34.7]} 35. Qb7+ {[%clk 0:01:51.1]} 35... Kh6 {[%clk 0:01:32.9]} 36. Qb5
{[%clk 0:01:42.4]} 36... g5 {[%clk 0:01:26.5]} 37. a5 {[%clk 0:01:37.7]} 37...
Qe3 {[%clk 0:01:22.8]} 38. a6 {[%clk 0:01:28.6]} 38... Ra2 {[%clk 0:01:21.1]}
39. Qb7 {[%clk 0:01:21.7]} 39... c4 {[%clk 0:01:17.2]} 40. Qc6 {[%clk
0:01:17.1]} 40... g4 {[%clk 0:01:13.3]} 41. Qxc4 {[%clk 0:01:09.8]} 41... Rxf2
{[%clk 0:01:06.7]} 42. Rxf2 {[%clk 0:01:01.3]} 42... g3 {[%clk 0:01:05.4]} 43.
Qxh4+ {[%clk 0:00:56.7]} 43... Kg6 {[%clk 0:01:04]} 44. Qxg3+ {[%clk 0:00:55.9]}
44... Kh5 {[%clk 0:01:02.6]} 45. Kh2 {[%clk 0:00:44.7]} 45... f4 {[%clk
0:01:01]} 46. Qg4+ {[%clk 0:00:43.8]} 46... Kh6 {[%clk 0:00:59.8]} 47. Rb2
{[%clk 0:00:42.3]} 47... Qc1 {[%clk 0:00:52.9]} 48. Rb8 {[%clk 0:00:39.9]} 48...
Kh7 {[%clk 0:00:46.9]} 49. Qf5+ {[%clk 0:00:37.4]} 49... Kh6 {[%clk 0:00:44.3]}
50. Rh8+ {[%clk 0:00:36.2]} 50... Kg7 {[%clk 0:00:43.4]} 51. Rh7+ {[%clk
0:00:33.4]} 51... Kg8 {[%clk 0:00:42.6]} 52. Qf7# {[%clk 0:00:32.7]} 1-0

[Event "Live Chess"]
[Site "Chess.com"]
[Date "2024.06.01"]
[Round "-"]
[White "IanCalvert2"]
[Black "alicechristina"]
[Result "1-0"]
[WhiteElo "1600"]
[BlackElo "1934"]
[TimeControl "300"]
[EndTime "13:43:22 PDT"]
[Termination "IanCalvert2 won by resignation"]

1. b3 {[%clk 0:04:56.6]} 1... d5 {[%clk 0:04:49.8]} 2. Bb2 {[%clk 0:04:54.6]}
2... e6 {[%clk 0:04:49]} 3. Nf3 {[%clk 0:04:48.2]} 3... Nf6 {[%clk 0:04:47.9]}
4. e3 {[%clk 0:04:46.9]} 4... Be7 {[%clk 0:04:41.1]} 5. d4 {[%clk 0:04:45.4]}
5... O-O {[%clk 0:04:40.1]} 6. Bd3 {[%clk 0:04:43.4]} 6... Nbd7 {[%clk
0:04:39.4]} 7. Nbd2 {[%clk 0:04:42.1]} 7... c5 {[%clk 0:04:37.8]} 8. O-O {[%clk
0:04:39.5]} 8... b6 {[%clk 0:04:36.5]} 9. Ne5 {[%clk 0:04:36.3]} 9... Nxe5
{[%clk 0:04:33.8]} 10. dxe5 {[%clk 0:04:35.1]} 10... Nd7 {[%clk 0:04:32.8]} 11.
f4 {[%clk 0:04:31.8]} 11... Bb7 {[%clk 0:04:29.3]} 12. Qh5 {[%clk 0:04:29.5]}
12... g6 {[%clk 0:04:26.5]} 13. Qh6 {[%clk 0:04:27.7]} 13... Rc8 {[%clk
0:04:17.9]} 14. Rf3 {[%clk 0:04:23.1]} 14... c4 {[%clk 0:04:16.3]} 15. Rh3
{[%clk 0:04:18.4]} 1-0